fUSD/lending_fUSD_20241223
["ID","MTS","AMOUNT","RATE_DAILY","PERIOD"]
[346472991,1734989438462,-500.0,0.00013698,2]
[346472992,1734989438471,-500.0,0.00013698,2]
[346472993,1734989438480,-762.13,0.00013698,2]
[346472994,1734989438490,-500.0,0.00013698,2]
[346472995,1734989438499,-500.0,0.00013698,2]
[346472996,1734989438508,-500.0,0.00013698,2]
[346472997,1734989438518,-882.6,0.00013698,2]
[346472998,1734989438527,-758.7,0.00013698,2]
[346472999,1734989438536,-500.0,0.00013698,2]
[346473000,1734989438545,-500.0,0.00013698,2]
[346473001,1734989438554,-500.0,0.00013698,2]
[346473002,1734989438563,-1139.39,0.00013698,2]
[346473003,1734989438572,-500.0,0.00013698,2]
[346473004,1734989438581,-500.0,0.00013698,2]
[346473005,1734989438591,-500.0,0.00013698,2]
[346473006,1734989438602,-500.0,0.00013698,2]
[346473007,1734989438611,-500.0,0.00013698,2]
[346473008,1734989438620,-500.0,0.00013698,2]
[346473009,1734989438630,-1284.79,0.00013698,2]
[346473010,1734989438639,-500.0,0.00013698,2]
[346473011,1734989438649,-500.0,0.00013698,2]
[346473012,1734989438658,-500.0,0.00013698,2]
[346473013,1734989438667,-500.0,0.00013698,2]
[346473014,1734989438676,-849.06,0.00013698,2]
[346473015,1734989438685,-500.0,0.00013698,2]
[346473016,1734989438694,-500.0,0.00013698,2]
[346473017,1734989438703,-520.55,0.00013698,2]
[346473018,1734989438712,-500.0,0.00013698,2]
[346473019,1734989438722,-437.74403494,0.00013698,2]
[346473020,1734989438731,-500.0,0.00013698,2]
[346473021,1734989438740,-860.41,0.00013698,2]
[346473022,1734989438749,-800.04,0.00013698,2]
[346473023,1734989438759,-607.01,0.00013698,2]
[346473024,1734989438768,-500.0,0.00013698,2]
[346473025,1734989438777,-500.0,0.00013698,2]
[346473026,1734989438786,-830.13,0.00013698,2]
[346473027,1734989438795,-500.0,0.00013698,2]
[346473028,1734989438804,-500.0,0.00013698,2]
[346473029,1734989438813,-1087.12,0.00013698,2]
[346473030,1734989438822,-500.0,0.00013698,2]
[346473031,1734989438831,-500.0,0.00013698,2]
[346473032,1734989438841,-500.0,0.00013698,2]
[346473033,1734989438851,-500.0,0.00013698,2]
[346473034,1734989438861,-500.0,0.00013698,2]
[346473035,1734989438870,-500.0,0.00013698,2]
[346473036,1734989438879,-500.0,0.00013698,2]
[346473037,1734989438888,-500.0,0.00013698,2]
[346473038,1734989438898,-500.0,0.00013698,2]
[346473039,1734989438908,-500.0,0.00013698,2]
[346473040,1734989438917,-500.0,0.00013698,2]
[346473041,1734989438926,-500.0,0.00013698,2]
[346473042,1734989438935,-1779.87,0.00013698,2]
[346473043,1734989438944,-500.0,0.00013698,2]
[346473044,1734989438953,-1000.29,0.00013698,2]
[346473045,1734989438962,-447.9889077,0.00013698,2]
[346473046,1734989438972,-1232.62,0.00013698,2]
[346473047,1734989438982,-614.33,0.00013698,2]
[346473048,1734989438994,-305.04914211,0.00013698,2]
[346473049,1734989439003,-500.0,0.00013698,2]
[346473050,1734989439012,-500.0,0.00013698,2]
[346473051,1734989439021,-500.0,0.00013698,2]
[346473052,1734989439031,-500.0,0.00013698,2]
[346473053,1734989439040,-500.0,0.00013698,2]
[346473054,1734989439050,-1065.88,0.00013698,2]
[346473055,1734989439059,-369.81466169,0.00013698,2]
[346473056,1734989439068,-500.0,0.00013698,2]
[346473057,1734989439078,-503.08844704,0.00013698,2]
[346473058,1734989439087,-500.0,0.00013698,2]
[346473059,1734989439097,-500.0,0.00013698,2]
[346473060,1734989439107,-770.77,0.00013698,2]
[346473061,1734989439116,-500.0,0.00013698,2]
[346473062,1734989439125,-557.2,0.00013698,2]
[346473063,1734989439138,-500.0,0.00013698,2]
[346473064,1734989439151,-675.3,0.00013698,2]
[346473065,1734989439175,-565.00190337,0.00013698,2]
[346473066,1734989439184,-776.61,0.00013698,2]
[346473067,1734989439193,-500.0,0.00013698,2]
[346473068,1734989439202,-501.28770427,0.00013698,2]
[346473069,1734989439211,-500.0,0.00013698,2]
[346473070,1734989439220,-500.0,0.00013698,2]
[346473071,1734989439229,-500.0,0.00013698,2]
[346473072,1734989439238,-500.0,0.00013698,2]
[346473073,1734989439248,-500.0,0.00013698,2]
[346473074,1734989439257,-500.0,0.00013698,2]
[346473075,1734989439267,-500.0,0.00013698,2]
[346473076,1734989439276,-500.0,0.00013698,2]
[346473077,1734989439286,-500.0,0.00013698,2]
[346473078,1734989439295,-500.0,0.00013698,2]
[346473079,1734989439305,-717.4,0.00013698,2]
[346473080,1734989439314,-500.0,0.00013698,2]
[346473081,1734989439324,-500.0,0.00013698,2]
[346473082,1734989439334,-743.67,0.00013698,2]
[346473083,1734989439343,-500.0,0.00013698,2]
[346473084,1734989439353,-502.85400895,0.00013698,2]
[346473085,1734989439363,-500.0,0.00013698,2]
[346473086,1734989439372,-1541.57,0.00013698,2]
[346473087,1734989439381,-572.85,0.00013698,2]
[346473088,1734989439391,-500.0,0.00013698,2]
[346473089,1734989439400,-500.0,0.00013698,2]
[346473090,1734989439409,-500.0,0.00013698,2]
[346473091,1734989439419,-500.0,0.00013698,2]
[346473092,1734989439428,-500.0,0.00013698,2]
[346473093,1734989439437,-949.43,0.00013698,2]
[346473094,1734989439447,-557.7,0.00013698,2]
[346473095,1734989439456,-500.0,0.00013698,2]
[346473096,1734989439465,-500.0,0.00013698,2]
[346473097,1734989439474,-1074.37,0.00013698,2]
[346473098,1734989439484,-915.74,0.00013698,2]
[346473099,1734989439493,-500.0,0.00013698,2]
[346473100,1734989439503,-1227.3,0.00013698,2]
[346473101,1734989439511,-4234.48,0.00013698,2]
[346473102,1734989439521,-500.0,0.00013698,2]
[346473103,1734989439530,-580.75,0.00013698,2]
[346473104,1734989439539,-995.76,0.00013698,2]
[346473105,1734989439549,-500.0,0.00013698,2]
[346473106,1734989439558,-500.0,0.00013698,2]
[346473107,1734989439567,-500.0,0.00013698,2]
[346473108,1734989439576,-913.31,0.00013698,2]
[346473110,1734989439585,-1086.89,0.00013698,2]
[346473111,1734989439594,-1345.45,0.00013698,2]
[346473112,1734989439604,-500.0,0.00013698,2]
[346473113,1734989439614,-500.0,0.00013698,2]
[346473114,1734989439623,-500.0,0.00013698,2]
[346473115,1734989439633,-1652.98,0.00013698,2]
[346473116,1734989439642,-500.0,0.00013698,2]
[346473117,1734989439651,-500.0,0.00013698,2]
[346473118,1734989439661,-3806.77,0.00013698,2]
[346473119,1734989439670,-500.0,0.00013698,2]
[346473120,1734989439679,-502.5481345,0.00013698,2]
[346473121,1734989439688,-669.68,0.00013698,2]
[346473122,1734989439698,-500.0,0.00013698,2]
[346473123,1734989439707,-749.59,0.00013698,2]
[346473124,1734989439716,-500.0,0.00013698,2]
[346473125,1734989439726,-500.0,0.00013698,2]
[346473126,1734989439736,-500.0,0.00013698,2]
[346473127,1734989439746,-500.0,0.00013698,2]
[346473128,1734989439877,-750.08,0.00013698,2]
[346473129,1734989439887,-695.76,0.00013698,2]
[346473130,1734989439897,-500.0,0.00013698,2]
[346473131,1734989439907,-500.0,0.00013698,2]
[346473132,1734989439917,-1151.9,0.00013698,2]
[346473133,1734989439927,-500.0,0.00013698,2]
[346473134,1734989439938,-500.0,0.00013698,2]
[346473135,1734989439947,-8372.41,0.00013698,2]
[346473136,1734989439957,-500.0,0.00013698,2]
[346473137,1734989439968,-548.38,0.00013698,2]
[346473138,1734989439977,-500.0,0.00013698,2]
[346473139,1734989439989,-500.0,0.00013698,2]
[346473140,1734989439999,-3000.0,0.00013698,2]
[346473141,1734989440008,-500.0,0.00013698,2]
[346473142,1734989440018,-500.0,0.00013698,2]
[346473143,1734989440027,-500.0,0.00013698,2]
[346473144,1734989440037,-500.0,0.00013698,2]
[346473145,1734989440046,-500.0,0.00013698,2]
[346473146,1734989440055,-749.59,0.00013698,2]
[346473147,1734989440065,-1041.65,0.00013698,2]
[346473148,1734989440075,-441.91445684,0.00013698,2]
[346473149,1734989440085,-500.0,0.00013698,2]
[346473150,1734989440094,-500.0,0.00013698,2]
[346473151,1734989440106,-500.0,0.00013698,2]
[346473152,1734989440115,-763.98,0.00013698,2]
[346473153,1734989440124,-1325.39,0.00013698,2]
[346473154,1734989440134,-500.0,0.00013698,2]
[346473155,1734989440143,-7720.25,0.00013698,2]
[346473156,1734989440152,-500.0,0.00013698,2]
[346473157,1734989440162,-500.0,0.00013698,2]
[346473158,1734989440171,-500.0,0.00013698,2]
[346473159,1734989440180,-500.0,0.00013698,2]
[346473160,1734989440190,-500.0,0.00013698,2]
[346473161,1734989440200,-1942.97,0.00013698,2]
[346473162,1734989440209,-1370.49,0.00013698,2]
[346473163,1734989440219,-500.0,0.00013698,2]
[346473164,1734989440227,-500.0,0.00013698,2]
[346473165,1734989440237,-500.0,0.00013698,2]
[346473166,1734989440247,-4397.01,0.00013698,2]
[346473167,1734989440256,-500.0,0.00013698,2]
[346473168,1734989440265,-500.0,0.00013698,2]
[346473169,1734989440275,-500.0,0.00013698,2]
[346473170,1734989440284,-500.0,0.00013698,2]
[346473171,1734989440294,-1077.7,0.00013698,2]
[346473173,1734989440303,-500.0,0.00013698,2]
[346473175,1734989440313,-1182.69,0.00013698,2]
[346473177,1734989440322,-500.0,0.00013698,2]
[346473180,1734989440332,-500.0,0.00013698,2]
[346473182,1734989440341,-500.0,0.00013698,2]
[346473184,1734989440353,-2311.09,0.00013698,2]
[346473186,1734989440362,-500.0,0.00013698,2]
[346473187,1734989440372,-1477.05,0.00013698,2]
[346473190,1734989440382,-2636.23,0.00013698,2]
[346473191,1734989440391,-500.0,0.00013698,2]
[346473194,1734989440401,-801.34,0.00013698,2]
[346473196,1734989440410,-1322.34,0.00013698,2]
[346473198,1734989440419,-500.0,0.00013698,2]
[346473199,1734989440428,-662.43,0.00013698,2]
[346473200,1734989440438,-501.76658601,0.00013698,2]
[346473201,1734989440447,-500.0,0.00013698,2]
[346473202,1734989440457,-500.0,0.00013698,2]
[346473203,1734989440466,-503.64170356,0.00013698,2]
[346473204,1734989440475,-500.0,0.00013698,2]
[346473205,1734989440485,-500.0,0.00013698,2]
[346473206,1734989440494,-500.0,0.00013698,2]
[346473207,1734989440504,-665.95,0.00013698,2]
[346473208,1734989440513,-500.0,0.00013698,2]
[346473209,1734989440522,-1301.23,0.00013698,2]
[346473210,1734989440532,-1233.3,0.00013698,2]
[346473211,1734989440542,-500.0,0.00013698,2]
[346473212,1734989440551,-500.0,0.00013698,2]
[346473213,1734989440561,-726.16,0.00013698,2]
[346473214,1734989440571,-673.3,0.00013698,2]
[346473215,1734989440580,-500.0,0.00013698,2]
[346473216,1734989440590,-500.0,0.00013698,2]
[346473217,1734989440599,-949.78,0.00013698,2]
[346473218,1734989440608,-4519.53,0.00013698,2]
[346473219,1734989440617,-500.0,0.00013698,2]
[346473220,1734989440627,-500.0,0.00013698,2]
[346473221,1734989440636,-500.0,0.00013698,2]
[346473222,1734989440646,-500.0,0.00013698,2]
[346473223,1734989440655,-1017.59,0.00013698,2]
[346473224,1734989440664,-500.0,0.00013698,2]
[346473225,1734989440674,-6116.35,0.00013698,2]
[346473226,1734989440683,-1332.64,0.00013698,2]
[346473227,1734989440692,-500.0,0.00013698,2]
[346473228,1734989440701,-500.0,0.00013698,2]
[346473229,1734989440710,-2339.65,0.00013698,2]
[346473230,1734989440719,-500.0,0.00013698,2]
[346473231,1734989440728,-500.0,0.00013698,2]
[346473232,1734989440737,-2800.3,0.00013698,2]
[346473233,1734989440746,-3181.46,0.00013698,2]
[346473234,1734989440755,-918.66,0.00013698,2]
[346473235,1734989440764,-3266.8,0.00013698,2]
[346473236,1734989440773,-500.0,0.00013698,2]
[346473237,1734989440782,-500.0,0.00013698,2]
[346473238,1734989440791,-1132.61,0.00013698,2]
[346473239,1734989440800,-500.0,0.00013698,2]
[346473240,1734989440810,-947.23,0.00013698,2]
[346473241,1734989440819,-1064.57,0.00013698,2]
[346473242,1734989440828,-500.0,0.00013698,2]
[346473243,1734989440837,-500.0,0.00013698,2]
[346473244,1734989440846,-986.8,0.00013698,2]
[346473245,1734989440857,-4451.9687402,0.00013698,2]
[346473246,1734989441400,-1848.7912598,0.00013698,2]
[346473247,1734989441410,-507.15173181,0.00013698,2]
[346473248,1734989441419,-708.37,0.00013698,2]
[346473249,1734989441431,-1858.39,0.00013698,2]
[346473250,1734989441440,-500.0,0.00013698,2]
[346473251,1734989441450,-3690.23,0.00013698,2]
[346473252,1734989441459,-500.0,0.00013698,2]
[346473253,1734989441469,-500.0,0.00013698,2]
[346473254,1734989441479,-500.0,0.00013698,2]
[346473255,1734989441488,-1579.59,0.00013698,2]
[346473256,1734989441498,-3697.97,0.00013698,2]
[346473257,1734989441508,-500.0,0.00013698,2]
[346473258,1734989441517,-2535.41,0.00013698,2]
[346473259,1734989441527,-500.0,0.00013698,2]
[346473260,1734989441536,-500.0,0.00013698,2]
[346473261,1734989441546,-500.0,0.00013698,2]
[346473262,1734989441555,-500.0,0.00013698,2]
[346473263,1734989441565,-500.0,0.00013698,2]
[346473264,1734989441575,-1366.27,0.00013698,2]
[346473265,1734989441584,-500.0,0.00013698,2]
[346473266,1734989441594,-8021.88394278,0.00013698,2]
[346473267,1734989441639,-11080.50605722,0.00013698,2]
[346473268,1734989441650,-500.0,0.00013698,2]
[346473269,1734989441659,-500.0,0.00013698,2]
[346473270,1734989441669,-500.0,0.00013698,2]
[346473271,1734989441678,-5257.47,0.00013698,2]
[346473272,1734989441688,-1207.89,0.00013698,2]
[346473273,1734989441697,-6015.88,0.00013698,2]
[346473274,1734989441709,-500.0,0.00013698,2]
[346473275,1734989441722,-500.0,0.00013698,2]
[346473276,1734989441731,-500.0,0.00013698,2]
[346473277,1734989441741,-500.0,0.00013698,2]
[346473278,1734989441751,-599.43,0.00013698,2]
[346473279,1734989441760,-500.0,0.00013698,2]
[346473280,1734989441769,-500.0,0.00013698,2]
[346473281,1734989441779,-503.81018042,0.00013698,2]
[346473282,1734989441788,-500.0,0.00013698,2]
[346473283,1734989442100,-500.0,0.00013698,2]
[346473284,1734989442134,-500.0,0.00013698,2]
[346473285,1734989442143,-184.45957284,0.00013698,2]
[346473286,1734989442153,-586.29,0.00013698,2]
[346473287,1734989442162,-500.0,0.00013698,2]
[346473288,1734989442172,-1059.26,0.00013698,2]
[346473289,1734989442181,-11420.34,0.00013698,2]
[346473290,1734989442191,-6499.68,0.00013698,2]
[346473291,1734989442200,-976.03,0.00013698,2]
[346473292,1734989442210,-153.883577,0.00013698,2]
[346473293,1734989442219,-155.940262,0.00013698,2]
[346473294,1734989442228,-925.68,0.00013698,2]
[346473295,1734989442238,-500.0,0.00013698,2]
[346473296,1734989442247,-500.0,0.00013698,2]
[346473297,1734989442257,-802.02,0.00013698,2]
[346473298,1734989442267,-1629.856228,0.00013698,2]
[346473299,1734989442276,-500.0,0.00013698,2]
[346473300,1734989442285,-2840.23,0.00013698,2]
[346473301,1734989442294,-500.0,0.00013698,2]
[346473302,1734989442304,-869.24,0.00013698,2]
[346473303,1734989442312,-1586.68,0.00013698,2]
[346473304,1734989442322,-688.64,0.00013698,2]
[346473305,1734989442331,-500.0,0.00013698,2]
[346473306,1734989442340,-1462.78413384,0.00013698,2]
[346473307,1734989442354,-497.60312416,0.00013698,2]
[346473308,1734989442364,-500.0,0.00013698,2]
[346473309,1734989442373,-1875.6,0.00013698,2]
[346473310,1734989442382,-998.38,0.00013698,2]
[346473311,1734989442392,-1254.68,0.00013698,2]
[346473312,1734989442401,-2461.96,0.00013698,2]
[346473313,1734989442410,-500.0,0.00013698,2]
[346473314,1734989442420,-3726.63,0.00013698,2]
[346473315,1734989442429,-902.33,0.00013698,2]
[346473316,1734989442439,-2010.83,0.00013698,2]
[346473317,1734989442448,-6632.91,0.00013698,2]
[346473318,1734989442457,-500.0,0.00013698,2]
[346473319,1734989442466,-500.0,0.00013698,2]
[346473320,1734989442476,-2648.8,0.00013698,2]
[346473321,1734989442485,-1623.41,0.00013698,2]
[346473322,1734989442495,-513.84551566,0.00013698,2]
[346473323,1734989442504,-601.56,0.00013698,2]
[346473324,1734989442513,-365.01224451,0.00013698,2]
[346473325,1734989442523,-694.41,0.00013698,2]
[346473326,1734989442532,-500.0,0.00013698,2]
[346473327,1734989442542,-500.0,0.00013698,2]
[346473328,1734989442551,-1690.04,0.00013698,2]
[346473329,1734989442560,-678.01,0.00013698,2]
[346473330,1734989442569,-1927.61,0.00013698,2]
[346473331,1734989442578,-1017.32,0.00013698,2]
[346473332,1734989442587,-500.0,0.00013698,2]
[346473333,1734989442597,-1715.12,0.00013698,2]
[346473334,1734989442608,-519.14,0.00013698,2]
[346473336,1734989442618,-500.0,0.00013698,2]
[346473337,1734989442627,-500.0,0.00013698,2]
[346473338,1734989442637,-500.0,0.00013698,2]
[346473339,1734989442646,-500.0,0.00013698,2]
[346473340,1734989442655,-500.0,0.00013698,2]
[346473342,1734989442664,-2388.13,0.00013698,2]
[346473343,1734989442674,-4095.99,0.00013698,2]
[346473345,1734989442683,-1469.98,0.00013698,2]
[346473347,1734989442693,-1072.14,0.00013698,2]
[346473349,1734989442702,-500.0,0.00013698,2]
[346473351,1734989442711,-1551.16,0.00013698,2]
[346473353,1734989442720,-3764.97,0.00013698,2]
[346473355,1734989442729,-500.0,0.00013698,2]
[346473357,1734989442738,-500.0,0.00013698,2]
[346473359,1734989442747,-500.0,0.00013698,2]
[346473360,1734989442758,-500.0,0.00013698,2]
[346473364,1734989442767,-500.0,0.00013698,2]
[346473367,1734989442776,-1445.3,0.00013698,2]
[346473371,1734989442785,-2367.09,0.00013698,2]
[346473374,1734989442794,-495.70178101,0.00013698,2]
[346473378,1734989442804,-916.35,0.00013698,2]
[346473381,1734989442813,-1958.26,0.00013698,2]
[346473384,1734989442822,-2418.0,0.00013698,2]
[346473387,1734989442831,-500.0,0.00013698,2]
[346473390,1734989442840,-3061.45,0.00013698,2]
[346473393,1734989442849,-500.0,0.00013698,2]
[346473396,1734989442860,-796.83,0.00013698,2]
[346473397,1734989442870,-1099.4,0.00013698,2]
[346473398,1734989442879,-500.0,0.00013698,2]
[346473399,1734989442888,-502.97732607,0.00013698,2]
[346473400,1734989442897,-618.2,0.00013698,2]
[346473401,1734989442906,-1128.54,0.00013698,2]
[346473402,1734989442915,-992.38059752,0.00013698,2]
[346473403,1734989442928,-2395.62940248,0.00013698,2]
[346473404,1734989442937,-500.0,0.00013698,2]
[346473405,1734989442946,-200.09894107,0.00013698,2]
[346473406,1734989442955,-728.92,0.00013698,2]
[346473407,1734989442964,-1966.97,0.00013698,2]
[346473408,1734989442973,-500.0,0.00013698,2]
[346473409,1734989442982,-737.3,0.00013698,2]
[346473410,1734989442995,-500.0,0.00013698,2]
[346473411,1734989443004,-500.0,0.00013698,2]
[346473412,1734989443013,-5271.71,0.00013698,2]
[346473413,1734989443022,-500.0,0.00013698,2]
[346473414,1734989443032,-979.98,0.00013698,2]
[346473415,1734989443041,-500.0,0.00013698,2]
[346473416,1734989443051,-994.9,0.00013698,2]
[346473417,1734989443060,-2163.98,0.00013698,2]
[346473418,1734989443071,-700.0,0.00013698,2]
[346473419,1734989443081,-1401.39,0.00013698,2]
[346473420,1734989443090,-500.0,0.00013698,2]
[346473421,1734989443099,-500.0,0.00013698,2]
[346473422,1734989443112,-500.0,0.00013698,2]
[346473423,1734989443126,-1032.04,0.00013698,2]
[346473424,1734989443135,-500.0,0.00013698,2]
[346473425,1734989443144,-3967.99,0.00013698,2]
[346473426,1734989443153,-523.0,0.00013698,2]
[346473427,1734989443163,-634.65,0.00013698,2]
[346473428,1734989443172,-839.84,0.00013698,2]
[346473429,1734989443182,-500.0,0.00013698,2]
[346473430,1734989443191,-1249.77,0.00013698,2]
[346473431,1734989443200,-671.43,0.00013698,2]
[346473432,1734989443210,-2495.16,0.00013698,2]
[346473433,1734989443219,-500.0,0.00013698,2]
[346473435,1734989443229,-500.0,0.00013698,2]
[346473437,1734989443239,-1358.27,0.00013698,2]
[346473439,1734989443249,-1183.0,0.00013698,2]
[346473441,1734989443258,-500.0,0.00013698,2]
[346473443,1734989443268,-3153.21308296,0.00013698,2]
[346473446,1734989443287,-459.96691704,0.00013698,2]
[346473448,1734989443297,-500.0,0.00013698,2]
[346473449,1734989443307,-500.0,0.00013698,2]
[346473452,1734989443316,-4958.04,0.00013698,2]
[346473454,1734989443326,-500.0,0.00013698,2]
[346473456,1734989443336,-541.61,0.00013698,2]
[346473458,1734989443346,-674.70452975,0.00013698,2]
[346473470,1734989443450,-408.74036916,0.00013698,2]
[346473514,1734989445034,-1853.50510109,0.00013698,2]
[346473515,1734989445044,-502.1193411,0.00013698,2]
[346473516,1734989445053,-2626.65,0.00013698,2]
[346473517,1734989445062,-500.0,0.00013698,2]
[346473518,1734989445074,-1931.98,0.00013698,2]
[346473519,1734989445083,-500.0,0.00013698,2]
[346473520,1734989445092,-500.0,0.00013698,2]
[346473521,1734989445102,-1015.23,0.00013698,2]
[346473522,1734989445116,-500.0,0.00013698,2]
[346473523,1734989445125,-1830.09,0.00013698,2]
[346473524,1734989445135,-900.0,0.00013698,2]
[346473525,1734989445144,-4826.7,0.00013698,2]
[346473526,1734989445153,-500.0,0.00013698,2]
[346473527,1734989445163,-1371.44,0.00013698,2]
[346473528,1734989445172,-1931.0,0.00013698,2]
[346473529,1734989445182,-601.36,0.00013698,2]
[346473530,1734989445191,-1702.71328621,0.00013698,2]
[346473531,1734989445203,-819.90671379,0.00013698,2]
[346473532,1734989445212,-546.63,0.00013698,2]
[346473533,1734989445223,-694.8,0.00013698,2]
[346473534,1734989445234,-729.3,0.00013698,2]
[346473535,1734989445244,-500.0,0.00013698,2]
[346473536,1734989445253,-500.0,0.00013698,2]
[346473537,1734989445263,-500.0,0.00013698,2]
[346473538,1734989445274,-500.0,0.00013698,2]
[346473539,1734989445284,-500.0,0.00013698,2]
[346473540,1734989445293,-500.0,0.00013698,2]
[346473541,1734989445304,-500.0,0.00013698,2]
[346473542,1734989445313,-500.0,0.00013698,2]
[346473543,1734989445323,-1167.15,0.00013698,2]
[346473544,1734989445332,-500.0,0.00013698,2]
[346473545,1734989445342,-752.85,0.00013698,2]
[346473546,1734989445352,-500.0,0.00013698,2]
[346473547,1734989445365,-3182.36,0.00013698,2]
[346473548,1734989445374,-500.0,0.00013698,2]
[346473549,1734989445384,-987.37,0.00013698,2]
[346473550,1734989445393,-500.0,0.00013698,2]
[346473551,1734989445403,-782.72,0.00013698,2]
[346473552,1734989445412,-500.0,0.00013698,2]
[346473553,1734989445422,-2809.23,0.00013698,2]
[346473554,1734989445432,-2765.32,0.00013698,2]
[346473555,1734989445441,-719.22,0.00013698,2]
[346473556,1734989445450,-2422.98882621,0.00013698,2]
[346473557,1734989445471,-2452.40117379,0.00013698,2]
[346473558,1734989445482,-500.0,0.00013698,2]
[346473559,1734989445492,-500.0,0.00013698,2]
[346473560,1734989445501,-695.36,0.00013698,2]
[346473561,1734989445511,-500.0,0.00013698,2]
[346473562,1734989445521,-500.0,0.00013698,2]
[346473564,1734989445530,-500.0,0.00013698,2]
[346473565,1734989445540,-500.0,0.00013698,2]
[346473567,1734989445549,-500.0,0.00013698,2]
[346473569,1734989445559,-14476.26,0.00013698,2]
[346473571,1734989445568,-500.0,0.00013698,2]
[346473573,1734989445578,-927.03,0.00013698,2]
[346473575,1734989445588,-445.91473178,0.00013698,2]
[346473577,1734989445598,-2989.33,0.00013698,2]
[346473579,1734989445611,-500.0,0.00013698,2]
[346473581,1734989445621,-1215.87,0.00013698,2]
[346473583,1734989445630,-5529.2,0.00013698,2]
[346473585,1734989445639,-500.0,0.00013698,2]
[346473587,1734989445648,-500.0,0.00013698,2]
[346473589,1734989445658,-587.94,0.00013698,2]
[346473591,1734989445667,-500.0,0.00013698,2]
[346473593,1734989445677,-500.0,0.00013698,2]
[346473595,1734989445687,-515.42,0.00013698,2]
[346473597,1734989445696,-1618.49,0.00013698,2]
[346473599,1734989445706,-1548.73,0.00013698,2]
[346473601,1734989445715,-500.0,0.00013698,2]
[346473603,1734989445725,-500.0,0.00013698,2]
[346473605,1734989445734,-500.0,0.00013698,2]
[346473607,1734989445743,-502.87541995,0.00013698,2]
[346473609,1734989445752,-2690.55,0.00013698,2]
[346473611,1734989445762,-500.0,0.00013698,2]
[346473613,1734989445771,-724.94,0.00013698,2]
[346473615,1734989445781,-796.71,0.00013698,2]
[346473617,1734989445790,-6293.93,0.00013698,2]
[346473619,1734989445799,-5043.81,0.00013698,2]
[346473621,1734989445808,-675.97,0.00013698,2]
[346473622,1734989445817,-500.0,0.00013698,2]
[346473623,1734989445827,-500.0,0.00013698,2]
[346473624,1734989445835,-883.99,0.00013698,2]
[346473625,1734989445845,-4171.28,0.00013698,2]
[346473626,1734989445854,-500.0,0.00013698,2]
[346473627,1734989445867,-500.0,0.00013698,2]
[346473628,1734989445876,-2535.6,0.00013698,2]
[346473629,1734989445885,-3271.9,0.00013698,2]
[346473630,1734989445895,-2092.47,0.00013698,2]
[346473631,1734989445905,-500.0,0.00013698,2]
[346473632,1734989445914,-677.98,0.00013698,2]
[346473633,1734989445924,-500.0,0.00013698,2]
[346473634,1734989445933,-3278.09,0.00013698,2]
[346473635,1734989445942,-500.0,0.00013698,2]
[346473636,1734989445952,-7414.04,0.00013698,2]